[Event "*** Titled Tuesday Blitz AM"]
[Site "Chess.com"]
[Date "2020.01.07"]
[Round "1"]
[White "NZT72"]
[Black "viditchess"]
[Result "0-1"]
[WhiteElo "2519"]
[BlackElo "2986"]
[TimeControl "180+2"]
[EndTime "9:08:56 PST"]
[Termination "viditchess won on time"]

1. c4 {[%clk 0:03:01.7]} 1... e5 {[%clk 0:03:00.6]} 2. g3 {[%clk 0:03:02.6]}
2... Nf6 {[%clk 0:02:59.4]} 3. Bg2 {[%clk 0:03:03.5]} 3... d5 {[%clk 0:03:01.1]}
4. cxd5 {[%clk 0:03:03.9]} 4... Nxd5 {[%clk 0:03:03]} 5. Nf3 {[%clk 0:03:02.9]}
5... Nc6 {[%clk 0:03:03.7]} 6. O-O {[%clk 0:03:03.4]} 6... Nb6 {[%clk
0:03:04.2]} 7. b3 {[%clk 0:03:02.4]} 7... Be7 {[%clk 0:03:01]} 8. Bb2 {[%clk
0:03:02.7]} 8... f6 {[%clk 0:03:02.1]} 9. Na3 {[%clk 0:02:55.9]} 9... O-O {[%clk
0:03:00.2]} 10. Nc2 {[%clk 0:02:55]} 10... Bg4 {[%clk 0:02:43.4]} 11. h3 {[%clk
0:02:45.4]} 11... Bh5 {[%clk 0:02:35.3]} 12. g4 {[%clk 0:02:42.3]} 12... Bf7
{[%clk 0:02:31.9]} 13. e4 {[%clk 0:02:36.3]} 13... Bg6 {[%clk 0:02:11.1]} 14.
Nh4 {[%clk 0:02:29.1]} 14... Qd3 {[%clk 0:02:05.5]} 15. Nxg6 {[%clk 0:01:24.4]}
15... hxg6 {[%clk 0:02:07.4]} 16. Ne1 {[%clk 0:01:23.9]} 16... Qd7 {[%clk
0:02:05.8]} 17. Rc1 {[%clk 0:01:17.9]} 17... Rad8 {[%clk 0:02:05.3]} 18. Bc3
{[%clk 0:01:08.3]} 18... Ba3 {[%clk 0:01:57.5]} 19. Rb1 {[%clk 0:01:04.5]} 19...
a5 {[%clk 0:01:38.7]} 20. Nc2 {[%clk 0:00:43.5]} 20... Bc5 {[%clk 0:01:37.3]}
21. a3 {[%clk 0:00:42.7]} 21... Bd4 {[%clk 0:01:28]} 22. Nxd4 {[%clk 0:00:35.8]}
22... Nxd4 {[%clk 0:01:26.6]} 23. Bxa5 {[%clk 0:00:29.5]} 23... g5 {[%clk
0:01:25.3]} 24. Bc3 {[%clk 0:00:27.9]} 24... Qe7 {[%clk 0:01:23.4]} 25. a4
{[%clk 0:00:26]} 25... Rd7 {[%clk 0:01:21.4]} 26. Re1 {[%clk 0:00:24.4]} 26...
Rfd8 {[%clk 0:01:21.8]} 27. Qc1 {[%clk 0:00:23.9]} 27... Nc8 {[%clk 0:01:17.5]}
28. b4 {[%clk 0:00:22.1]} 28... Ne6 {[%clk 0:01:17.3]} 29. Bf1 {[%clk 0:00:22]}
29... Nf4 {[%clk 0:01:18.1]} 30. b5 {[%clk 0:00:19.6]} 30... b6 {[%clk
0:00:49.6]} 31. Re3 {[%clk 0:00:19.1]} 31... Kh7 {[%clk 0:00:38.6]} 32. Qc2
{[%clk 0:00:20]} 32... Qe6 {[%clk 0:00:36.9]} 33. a5 {[%clk 0:00:16.4]} 33...
bxa5 {[%clk 0:00:37.3]} 34. Bxa5 {[%clk 0:00:16.2]} 34... Nb6 {[%clk 0:00:38.8]}
35. Bc3 {[%clk 0:00:14.8]} 35... Kg6 {[%clk 0:00:36.9]} 36. Ra1 {[%clk
0:00:13.3]} 36... Nc4 {[%clk 0:00:36.5]} 37. Bxc4 {[%clk 0:00:08.6]} 37... Qxc4
{[%clk 0:00:38.4]} 38. Kh2 {[%clk 0:00:08.1]} 38... Rxd2 {[%clk 0:00:31.2]} 39.
Qxd2 {[%clk 0:00:06.9]} 39... Rxd2 {[%clk 0:00:32.3]} 40. Bxd2 {[%clk
0:00:08.2]} 40... Qc2 {[%clk 0:00:31.1]} 41. Be1 {[%clk 0:00:07.4]} 41... Qc4
{[%clk 0:00:30.7]} 42. Bd2 {[%clk 0:00:04.4]} 42... Qxb5 {[%clk 0:00:31.6]} 43.
Rc1 {[%clk 0:00:05.2]} 43... c5 {[%clk 0:00:32.2]} 44. Rf3 {[%clk 0:00:02.3]}
44... Qe2 {[%clk 0:00:31.9]} 0-1

[Event "*** Titled Tuesday Blitz AM"]
[Site "Chess.com"]
[Date "2020.01.07"]
[Round "1"]
[White "MasterKroket"]
[Black "alishersuleymenov"]
[Result "0-1"]
[WhiteElo "2420"]
[BlackElo "2808"]
[TimeControl "180+2"]
[EndTime "9:08:56 PST"]
[Termination "alishersuleymenov won by resignation"]

1. d4 {[%clk 0:03:01.6]} 1... g6 {[%clk 0:03:00.7]} 2. c4 {[%clk 0:03:01.5]}
2... Bg7 {[%clk 0:03:01.2]} 3. Nf3 {[%clk 0:03:02.4]} 3... d6 {[%clk 0:03:00.3]}
4. e4 {[%clk 0:03:00.4]} 4... Nf6 {[%clk 0:03:01.1]} 5. Nc3 {[%clk 0:03:00.6]}
5... O-O {[%clk 0:03:02]} 6. Be2 {[%clk 0:03:01.8]} 6... e5 {[%clk 0:03:00.1]}
7. d5 {[%clk 0:03:03.2]} 7... a5 {[%clk 0:02:55]} 8. O-O {[%clk 0:03:03.3]} 8...
Na6 {[%clk 0:02:55.9]} 9. Bg5 {[%clk 0:03:03.5]} 9... Nc5 {[%clk 0:02:48.7]} 10.
Nd2 {[%clk 0:03:04.2]} 10... h6 {[%clk 0:02:48.9]} 11. Bh4 {[%clk 0:03:05.1]}
11... c6 {[%clk 0:02:00.1]} 12. b3 {[%clk 0:02:50.7]} 12... Bd7 {[%clk
0:01:52.5]} 13. a3 {[%clk 0:02:50.3]} 13... Qb6 {[%clk 0:01:33.9]} 14. Rb1
{[%clk 0:02:46.6]} 14... Rfc8 {[%clk 0:01:20.4]} 15. b4 {[%clk 0:02:43.8]} 15...
axb4 {[%clk 0:01:22.3]} 16. axb4 {[%clk 0:02:43.4]} 16... Na6 {[%clk 0:01:23.5]}
17. c5 {[%clk 0:02:00.1]} 17... dxc5 {[%clk 0:01:25.4]} 18. bxc5 {[%clk
0:02:01.3]} 18... Qxc5 {[%clk 0:01:24.5]} 19. Na4 {[%clk 0:02:02.3]} 19... Qe7
{[%clk 0:00:53.7]} 20. Nb6 {[%clk 0:02:00.8]} 20... cxd5 {[%clk 0:00:54.8]} 21.
exd5 {[%clk 0:01:56.9]} 21... Nc5 {[%clk 0:00:53.2]} 22. Nxa8 {[%clk 0:01:50.4]}
22... Rxa8 {[%clk 0:00:54.1]} 23. Nc4 {[%clk 0:01:50.1]} 23... g5 {[%clk
0:00:55.1]} 24. Bg3 {[%clk 0:01:49.3]} 24... Nfe4 {[%clk 0:00:56.5]} 25. Qc2
{[%clk 0:01:30.4]} 25... Ba4 {[%clk 0:00:57.5]} 26. Qb2 {[%clk 0:01:24.5]} 26...
Rd8 {[%clk 0:00:55.8]} 27. Rfd1 {[%clk 0:01:20]} 27... Bxd1 {[%clk 0:00:56.1]}
28. Rxd1 {[%clk 0:01:20.4]} 28... b5 {[%clk 0:00:57.6]} 29. Ne3 {[%clk
0:01:15.8]} 29... Na4 {[%clk 0:00:57.3]} 30. Qb3 {[%clk 0:01:05.1]} 30... Nec3
{[%clk 0:00:53.7]} 31. Rd2 {[%clk 0:01:01.3]} 31... Nxe2+ {[%clk 0:00:52.9]} 32.
Rxe2 {[%clk 0:01:03.2]} 32... Qc5 {[%clk 0:00:51.8]} 33. h4 {[%clk 0:01:02.1]}
33... Nc3 {[%clk 0:00:50]} 34. Rc2 {[%clk 0:01:00.6]} 34... b4 {[%clk
0:00:51.2]} 35. hxg5 {[%clk 0:01:00.3]} 35... hxg5 {[%clk 0:00:53.1]} 36. Nf5
{[%clk 0:00:59.5]} 36... Rxd5 {[%clk 0:00:49.7]} 37. Kh2 {[%clk 0:00:46.4]}
37... Bf8 {[%clk 0:00:48.9]} 38. f3 {[%clk 0:00:40.6]} 38... g4 {[%clk
0:00:43.3]} 39. fxg4 {[%clk 0:00:39.9]} 39... e4 {[%clk 0:00:42.3]} 40. Bf2
{[%clk 0:00:38.2]} 40... Qc7+ {[%clk 0:00:42.6]} 41. Bg3 {[%clk 0:00:39.1]}
41... Qc6 {[%clk 0:00:42.7]} 42. Qb2 {[%clk 0:00:24.6]} 42... e3 {[%clk
0:00:43.9]} 43. Qc1 {[%clk 0:00:24.4]} 43... Bc5 {[%clk 0:00:37.4]} 44. Bf4
{[%clk 0:00:16.8]} 44... e2 {[%clk 0:00:32.6]} 45. Qe1 {[%clk 0:00:16.2]} 45...
Rd1 {[%clk 0:00:30.3]} 46. Qh4 {[%clk 0:00:15.6]} 46... e1=Q {[%clk 0:00:31.6]}
47. Qg5+ {[%clk 0:00:13.1]} 47... Qg6 {[%clk 0:00:32.2]} 48. Nh6+ {[%clk
0:00:12.1]} 48... Kh7 {[%clk 0:00:33.4]} 49. Qh4 {[%clk 0:00:12.1]} 0-1

[Event "*** Titled Tuesday Blitz AM"]
[Site "Chess.com"]
[Date "2020.01.07"]
[Round "1"]
[White "dianosky"]
[Black "EugeneRougon"]
[Result "0-1"]
[WhiteElo "2366"]
[BlackElo "2724"]
[TimeControl "180+2"]
[EndTime "9:09:00 PST"]
[Termination "EugeneRougon won by resignation"]

1. d4 {[%clk 0:03:01.9]} 1... d5 {[%clk 0:02:58.4]} 2. c4 {[%clk 0:03:03.3]}
2... c6 {[%clk 0:02:59.9]} 3. Nc3 {[%clk 0:03:04.5]} 3... Nf6 {[%clk 0:03:01.1]}
4. Nf3 {[%clk 0:03:06.1]} 4... e6 {[%clk 0:03:02.1]} 5. Bg5 {[%clk 0:03:07.3]}
5... Nbd7 {[%clk 0:03:02.1]} 6. e3 {[%clk 0:03:08.8]} 6... Qa5 {[%clk
0:03:00.6]} 7. Bxf6 {[%clk 0:03:10]} 7... Nxf6 {[%clk 0:03:01]} 8. Qc2 {[%clk
0:03:11.9]} 8... Bb4 {[%clk 0:03:00.8]} 9. Nd2 {[%clk 0:03:13.2]} 9... c5 {[%clk
0:02:53.8]} 10. Nb3 {[%clk 0:03:00.5]} 10... Qc7 {[%clk 0:02:38.1]} 11. a3
{[%clk 0:02:51.1]} 11... Bxc3+ {[%clk 0:02:36.9]} 12. bxc3 {[%clk 0:02:52]}
12... b6 {[%clk 0:02:26.2]} 13. Be2 {[%clk 0:02:24.9]} 13... O-O {[%clk
0:02:23.8]} 14. O-O {[%clk 0:02:25.8]} 14... dxc4 {[%clk 0:02:17.6]} 15. Bxc4
{[%clk 0:02:26.5]} 15... Bb7 {[%clk 0:02:18.5]} 16. Rfc1 {[%clk 0:02:24.9]}
16... Ng4 {[%clk 0:02:08.7]} 17. g3 {[%clk 0:01:55.3]} 17... Qc6 {[%clk
0:02:02.9]} 18. e4 {[%clk 0:01:55.2]} 18... cxd4 {[%clk 0:01:50.7]} 19. cxd4
{[%clk 0:01:55.8]} 19... Qxe4 {[%clk 0:01:52]} 20. Qxe4 {[%clk 0:01:55.5]} 20...
Bxe4 {[%clk 0:01:53.9]} 21. Be2 {[%clk 0:01:56.6]} 21... Nf6 {[%clk 0:01:53.5]}
22. Nd2 {[%clk 0:01:55.4]} 22... Bd5 {[%clk 0:01:53.7]} 23. Rc3 {[%clk
0:01:56.4]} 23... Rfc8 {[%clk 0:01:43.2]} 24. Rac1 {[%clk 0:01:57.1]} 24... Rxc3
{[%clk 0:01:44]} 25. Rxc3 {[%clk 0:01:58.2]} 25... Kf8 {[%clk 0:01:43.3]} 26.
Rc7 {[%clk 0:01:51.3]} 26... Ne8 {[%clk 0:01:43.7]} 27. Rc3 {[%clk 0:01:49]}
27... Ke7 {[%clk 0:01:29.4]} 28. Bb5 {[%clk 0:01:39.4]} 28... Kd6 {[%clk
0:01:15.3]} 29. Bd3 {[%clk 0:01:22.3]} 29... Nf6 {[%clk 0:01:11.5]} 30. f3
{[%clk 0:01:18.7]} 30... Rd8 {[%clk 0:01:08.7]} 31. Kf2 {[%clk 0:01:19.1]} 31...
Rd7 {[%clk 0:01:04.8]} 32. g4 {[%clk 0:01:02.6]} 32... h6 {[%clk 0:01:03]} 33.
h4 {[%clk 0:01:03]} 33... g5 {[%clk 0:00:59.7]} 34. hxg5 {[%clk 0:01:03.6]}
34... hxg5 {[%clk 0:01:01.6]} 35. Be4 {[%clk 0:00:57.5]} 35... Rc7 {[%clk
0:00:55.8]} 36. Rxc7 {[%clk 0:00:58.1]} 36... Kxc7 {[%clk 0:00:57.1]} 37. Bd3
{[%clk 0:00:52.5]} 37... a5 {[%clk 0:00:44.8]} 38. Ke3 {[%clk 0:00:52.8]} 38...
Bc6 {[%clk 0:00:44.7]} 39. Nc4 {[%clk 0:00:42.5]} 39... Nd5+ {[%clk 0:00:42.2]}
40. Kf2 {[%clk 0:00:43.7]} 40... f6 {[%clk 0:00:42.3]} 41. Nd2 {[%clk
0:00:34.9]} 41... b5 {[%clk 0:00:31.6]} 42. Ne4 {[%clk 0:00:34.7]} 42... b4
{[%clk 0:00:29.7]} 43. axb4 {[%clk 0:00:35.4]} 43... axb4 {[%clk 0:00:31.1]} 44.
Bc4 {[%clk 0:00:37.2]} 44... Kb6 {[%clk 0:00:23.9]} 45. Bxd5 {[%clk 0:00:36.9]}
45... Bxd5 {[%clk 0:00:22.3]} 46. Nxf6 {[%clk 0:00:38.8]} 46... b3 {[%clk
0:00:23.7]} 0-1

[Event "*** Titled Tuesday Blitz AM"]
[Site "Chess.com"]
[Date "2020.01.07"]
[Round "1"]
[White "Gordima"]
[Black "MartinMatthiesen"]
[Result "0-1"]
[WhiteElo "2829"]
[BlackElo "2507"]
[TimeControl "180+2"]
[EndTime "9:09:04 PST"]
[Termination "MartinMatthiesen won on time"]

1. d4 {[%clk 0:03:00.9]} 1... Nf6 {[%clk 0:02:59.9]} 2. c4 {[%clk 0:03:02.3]}
2... e6 {[%clk 0:03:01]} 3. g3 {[%clk 0:03:03.6]} 3... c5 {[%clk 0:03:00]} 4.
Nf3 {[%clk 0:03:04.3]} 4... cxd4 {[%clk 0:02:59.8]} 5. Nxd4 {[%clk 0:03:06.2]}
5... d5 {[%clk 0:03:01.1]} 6. Bg2 {[%clk 0:03:06.9]} 6... e5 {[%clk 0:03:01.9]}
7. Nf3 {[%clk 0:03:08.4]} 7... d4 {[%clk 0:03:03.1]} 8. O-O {[%clk 0:03:10]}
8... Nc6 {[%clk 0:03:03.9]} 9. e3 {[%clk 0:03:11.4]} 9... Be7 {[%clk 0:03:03.8]}
10. exd4 {[%clk 0:03:12.1]} 10... exd4 {[%clk 0:03:04.9]} 11. Bf4 {[%clk
0:03:13.7]} 11... Be6 {[%clk 0:03:04.6]} 12. Nbd2 {[%clk 0:03:05.6]} 12... O-O
{[%clk 0:03:02.5]} 13. Ne5 {[%clk 0:03:06.2]} 13... Rc8 {[%clk 0:03:02.1]} 14.
Re1 {[%clk 0:03:02.4]} 14... Qb6 {[%clk 0:02:46.3]} 15. Qb3 {[%clk 0:03:02.9]}
15... Bb4 {[%clk 0:02:23.1]} 16. Nd3 {[%clk 0:02:43.4]} 16... Bxd2 {[%clk
0:01:36.7]} 17. Bxd2 {[%clk 0:02:45.3]} 17... Nd7 {[%clk 0:01:34.3]} 18. Nf4
{[%clk 0:02:41.5]} 18... Nc5 {[%clk 0:01:11.6]} 19. Qxb6 {[%clk 0:02:42.4]}
19... axb6 {[%clk 0:01:11.7]} 20. b4 {[%clk 0:02:44.3]} 20... Na4 {[%clk
0:01:10.2]} 21. Nxe6 {[%clk 0:02:44]} 21... fxe6 {[%clk 0:01:10.9]} 22. Rxe6
{[%clk 0:02:41.7]} 22... Nc3 {[%clk 0:01:12]} 23. a3 {[%clk 0:02:35.2]} 23...
Rfd8 {[%clk 0:01:12.1]} 24. Rc1 {[%clk 0:02:29.8]} 24... Kf7 {[%clk 0:01:08.7]}
25. Ree1 {[%clk 0:02:26.5]} 25... Na4 {[%clk 0:01:03.7]} 26. Bd5+ {[%clk
0:02:24.3]} 26... Kf8 {[%clk 0:01:04.3]} 27. Bg5 {[%clk 0:02:18.5]} 27... Re8
{[%clk 0:01:04.1]} 28. Bf4 {[%clk 0:02:20]} 28... Rcd8 {[%clk 0:01:00.1]} 29.
Rxe8+ {[%clk 0:01:59]} 29... Kxe8 {[%clk 0:01:00.6]} 30. Re1+ {[%clk 0:01:53.7]}
30... Kf8 {[%clk 0:01:01]} 31. Be4 {[%clk 0:00:55.9]} 31... d3 {[%clk
0:00:57.7]} 32. Bxh7 {[%clk 0:00:51.7]} 32... Nb2 {[%clk 0:00:58]} 33. Bd2
{[%clk 0:00:18.4]} 33... Nxc4 {[%clk 0:00:57.9]} 34. Bc3 {[%clk 0:00:19.8]}
34... Nd4 {[%clk 0:00:55]} 35. Bxd4 {[%clk 0:00:08]} 35... Rxd4 {[%clk
0:00:54.2]} 36. Kf1 {[%clk 0:00:03.6]} 36... d2 {[%clk 0:00:55]} 37. Rd1 {[%clk
0:00:05.2]} 37... Nb2 {[%clk 0:00:56.2]} 38. Ke2 {[%clk 0:00:06.7]} 38... Nxd1
{[%clk 0:00:57.2]} 39. Kxd1 {[%clk 0:00:08.3]} 39... Kf7 {[%clk 0:00:58.2]} 40.
Bc2 {[%clk 0:00:08.2]} 40... g6 {[%clk 0:00:58.7]} 41. Ba4 {[%clk 0:00:09]}
41... Kf6 {[%clk 0:00:58.4]} 42. Bb5 {[%clk 0:00:10.1]} 42... g5 {[%clk
0:00:59.3]} 43. h3 {[%clk 0:00:10.3]} 43... Ke5 {[%clk 0:00:59]} 44. Bf1 {[%clk
0:00:11.4]} 44... Ke4 {[%clk 0:00:59.2]} 45. Bg2+ {[%clk 0:00:09.9]} 45... Kd3
{[%clk 0:00:59.9]} 46. Bxb7 {[%clk 0:00:11.5]} 46... Kc3 {[%clk 0:01:00.9]} 47.
Bf3 {[%clk 0:00:06.7]} 47... Kb3 {[%clk 0:00:57.1]} 48. h4 {[%clk 0:00:07.1]}
48... gxh4 {[%clk 0:00:57.2]} 49. gxh4 {[%clk 0:00:08.6]} 49... Kxa3 {[%clk
0:00:58.5]} 50. b5 {[%clk 0:00:05.3]} 50... Kb4 {[%clk 0:00:57.8]} 51. h5 {[%clk
0:00:06.3]} 51... Kc3 {[%clk 0:00:55.7]} 52. Ke2 {[%clk 0:00:04.1]} 52... d1=Q+
{[%clk 0:00:55.6]} 0-1

[Event "*** Titled Tuesday Blitz AM"]
[Site "Chess.com"]
[Date "2020.01.07"]
[Round "1"]
[White "Vuk2000"]
[Black "allvim"]
[Result "1-0"]
[WhiteElo "2696"]
[BlackElo "2307"]
[TimeControl "180+2"]
[EndTime "9:09:08 PST"]
[Termination "Vuk2000 won by resignation"]

1. d4 {[%clk 0:03:00.2]} 1... Nf6 {[%clk 0:03:00.1]} 2. Bg5 {[%clk 0:03:00.9]}
2... d5 {[%clk 0:03:00.3]} 3. Bxf6 {[%clk 0:03:01.2]} 3... exf6 {[%clk
0:03:02.2]} 4. e3 {[%clk 0:03:01.2]} 4... Bd6 {[%clk 0:03:03.2]} 5. g3 {[%clk
0:03:01.5]} 5... O-O {[%clk 0:03:03.9]} 6. Bg2 {[%clk 0:03:02.8]} 6... c6 {[%clk
0:03:05.4]} 7. Nd2 {[%clk 0:03:03.9]} 7... Bf5 {[%clk 0:03:06.8]} 8. c4 {[%clk
0:03:00]} 8... dxc4 {[%clk 0:03:00.5]} 9. Nxc4 {[%clk 0:02:54]} 9... Bc7 {[%clk
0:03:00.8]} 10. Ne2 {[%clk 0:02:54.2]} 10... Nd7 {[%clk 0:03:00.3]} 11. e4
{[%clk 0:02:48.6]} 11... Be6 {[%clk 0:02:49.9]} 12. d5 {[%clk 0:02:49.7]} 12...
cxd5 {[%clk 0:02:49.9]} 13. exd5 {[%clk 0:02:51.6]} 13... Ba5+ {[%clk
0:02:45.5]} 14. Nxa5 {[%clk 0:02:47.9]} 14... Qxa5+ {[%clk 0:02:47.4]} 15. Qd2
{[%clk 0:02:44]} 15... Qxd2+ {[%clk 0:02:42.7]} 16. Kxd2 {[%clk 0:02:45.9]}
16... Bf5 {[%clk 0:02:41.7]} 17. Nd4 {[%clk 0:02:46.9]} 17... Bg6 {[%clk
0:02:43]} 18. f4 {[%clk 0:02:42.8]} 18... f5 {[%clk 0:02:28.4]} 19. Ne2 {[%clk
0:02:09.8]} 19... Rfe8 {[%clk 0:02:22.5]} 20. Nc3 {[%clk 0:02:05.7]} 20... Nc5
{[%clk 0:02:22.9]} 21. Rhe1 {[%clk 0:02:03.1]} 21... Rad8 {[%clk 0:02:16.3]} 22.
b4 {[%clk 0:01:43.8]} 22... Ne4+ {[%clk 0:02:06.7]} 23. Bxe4 {[%clk 0:01:31.1]}
23... fxe4 {[%clk 0:02:08.6]} 24. Ke3 {[%clk 0:01:27.6]} 24... f5 {[%clk
0:02:03.3]} 25. Rac1 {[%clk 0:01:15.7]} 25... Bf7 {[%clk 0:02:02.1]} 26. Red1
{[%clk 0:01:12.4]} 26... Rc8 {[%clk 0:01:57.1]} 27. a3 {[%clk 0:00:50.1]} 27...
Red8 {[%clk 0:01:48.4]} 28. d6 {[%clk 0:00:48.1]} 28... Rc6 {[%clk 0:01:43.8]}
29. Nb5 {[%clk 0:00:48]} 29... Rxc1 {[%clk 0:01:31.6]} 30. Rxc1 {[%clk
0:00:48.5]} 30... a6 {[%clk 0:01:33.2]} 31. Nd4 {[%clk 0:00:49.6]} 31... g6
{[%clk 0:01:28.1]} 32. Rc7 {[%clk 0:00:49.4]} 32... Rxd6 {[%clk 0:01:28.6]} 33.
Rxb7 {[%clk 0:00:49.7]} 33... Rd8 {[%clk 0:01:17.2]} 34. Rb6 {[%clk 0:00:43.7]}
34... Bc4 {[%clk 0:01:13]} 35. a4 {[%clk 0:00:40.3]} 35... Bd3 {[%clk
0:01:00.7]} 36. Nc6 {[%clk 0:00:37.5]} 36... Rd7 {[%clk 0:00:46.7]} 37. Ne5
{[%clk 0:00:36.9]} 37... Rd8 {[%clk 0:00:44.3]} 38. Nc6 {[%clk 0:00:20.9]} 38...
Rd7 {[%clk 0:00:43]} 39. b5 {[%clk 0:00:19.2]} 39... axb5 {[%clk 0:00:41.1]} 40.
axb5 {[%clk 0:00:21.1]} 40... Kg7 {[%clk 0:00:34.2]} 41. Ne5 {[%clk 0:00:21.1]}
41... Rd5 {[%clk 0:00:33.2]} 42. Rb7+ {[%clk 0:00:22.2]} 42... Kg8 {[%clk
0:00:33.5]} 43. Rb8+ {[%clk 0:00:22.3]} 43... Kg7 {[%clk 0:00:34.2]} 44. b6
{[%clk 0:00:23.5]} 44... Ba6 {[%clk 0:00:20]} 45. Ra8 {[%clk 0:00:22.8]} 45...
Ra5 {[%clk 0:00:13.2]} 46. Nc4 {[%clk 0:00:21.7]} 46... Ra4 {[%clk 0:00:11.3]}
47. b7 {[%clk 0:00:19.2]} 47... Bxb7 {[%clk 0:00:07.6]} 1-0

[Event "*** Titled Tuesday Blitz AM"]
[Site "Chess.com"]
[Date "2020.01.07"]
[Round "1"]
[White "Duhless"]
[Black "M1711"]
[Result "1-0"]
[WhiteElo "3097"]
[BlackElo "2527"]
[TimeControl "180+2"]
[EndTime "9:09:11 PST"]
[Termination "Duhless won by resignation"]

1. Nf3 {[%clk 0:03:01.9]} 1... c5 {[%clk 0:02:59.6]} 2. e4 {[%clk 0:03:02.5]}
2... e6 {[%clk 0:03:00.1]} 3. d4 {[%clk 0:03:02.3]} 3... cxd4 {[%clk 0:03:02]}
4. Nxd4 {[%clk 0:03:04]} 4... Nc6 {[%clk 0:03:03.4]} 5. Nc3 {[%clk 0:03:04.6]}
5... Qc7 {[%clk 0:03:04.7]} 6. g3 {[%clk 0:03:04.6]} 6... a6 {[%clk 0:03:03.6]}
7. Bg2 {[%clk 0:03:05.2]} 7... Nf6 {[%clk 0:03:04.8]} 8. O-O {[%clk 0:03:06]}
8... d6 {[%clk 0:03:05.8]} 9. Nxc6 {[%clk 0:03:03.2]} 9... bxc6 {[%clk
0:03:06.8]} 10. b3 {[%clk 0:03:04.4]} 10... Be7 {[%clk 0:03:03.3]} 11. Bb2
{[%clk 0:03:05.2]} 11... O-O {[%clk 0:03:03.1]} 12. Na4 {[%clk 0:03:06.2]} 12...
Bb7 {[%clk 0:03:00.1]} 13. c4 {[%clk 0:03:06.2]} 13... c5 {[%clk 0:03:00.1]} 14.
Qe2 {[%clk 0:03:06.1]} 14... Rad8 {[%clk 0:02:57.9]} 15. Rad1 {[%clk 0:03:06.1]}
15... Bc6 {[%clk 0:02:54.7]} 16. Nc3 {[%clk 0:03:06.2]} 16... Rfe8 {[%clk
0:02:49]} 17. g4 {[%clk 0:03:04.4]} 17... Nd7 {[%clk 0:02:48.6]} 18. f4 {[%clk
0:03:03.8]} 18... Bf6 {[%clk 0:02:40]} 19. Kh1 {[%clk 0:02:51.1]} 19... Bd4
{[%clk 0:02:36]} 20. g5 {[%clk 0:02:48]} 20... Nf8 {[%clk 0:02:30]} 21. h4
{[%clk 0:02:38.7]} 21... d5 {[%clk 0:02:06.1]} 22. h5 {[%clk 0:02:25.1]} 22...
Qb7 {[%clk 0:01:49.1]} 23. Rd2 {[%clk 0:01:34.6]} 23... Bxc3 {[%clk 0:01:25.7]}
24. Bxc3 {[%clk 0:01:33.9]} 24... dxe4 {[%clk 0:01:26.7]} 25. Rfd1 {[%clk
0:01:33.7]} 25... Qc7 {[%clk 0:01:12.5]} 26. Qe3 {[%clk 0:01:30.2]} 26... Rxd2
{[%clk 0:00:57.8]} 27. Rxd2 {[%clk 0:01:29.7]} 27... Rd8 {[%clk 0:00:58.6]} 28.
Qxc5 {[%clk 0:01:23.8]} 28... Rxd2 {[%clk 0:00:46.5]} 29. Bxd2 {[%clk
0:01:24.5]} 29... Qd7 {[%clk 0:00:31.4]} 30. Bb4 {[%clk 0:01:13.8]} 30... Qd1+
{[%clk 0:00:29.8]} 31. Kh2 {[%clk 0:01:14.3]} 31... Qxh5+ {[%clk 0:00:24.5]} 32.
Kg1 {[%clk 0:00:59.3]} 32... Qd1+ {[%clk 0:00:25.5]} 33. Kf2 {[%clk 0:01:00.5]}
33... Qc2+ {[%clk 0:00:12]} 34. Kg3 {[%clk 0:00:59.1]} 34... Qd3+ {[%clk
0:00:09.8]} 35. Kh2 {[%clk 0:01:00]} 35... Ng6 {[%clk 0:00:03.6]} 36. Qxc6
{[%clk 0:01:00.2]} 36... h5 {[%clk 0:00:04.9]} 37. gxh6 {[%clk 0:00:52.7]} 37...
gxh6 {[%clk 0:00:04.8]} 38. Qa8+ {[%clk 0:00:45.6]} 38... Kh7 {[%clk 0:00:04.4]}
39. Qxe4 {[%clk 0:00:46.4]} 39... Qd1 {[%clk 0:00:04.3]} 40. f5 {[%clk
0:00:42.2]} 40... Qh5+ {[%clk 0:00:05.2]} 41. Bh3 {[%clk 0:00:43.2]} 41... exf5
{[%clk 0:00:06.6]} 42. Qxf5 {[%clk 0:00:43.1]} 42... Qe2+ {[%clk 0:00:08.2]} 43.
Bg2 {[%clk 0:00:43.9]} 43... Kg8 {[%clk 0:00:07.9]} 44. Qe4 {[%clk 0:00:38.3]}
44... Qh5+ {[%clk 0:00:08.4]} 45. Kg1 {[%clk 0:00:38.4]} 45... Qd1+ {[%clk
0:00:07.4]} 46. Bf1 {[%clk 0:00:39.6]} 46... Qd8 {[%clk 0:00:04.6]} 47. Bc3
{[%clk 0:00:38.2]} 47... Qg5+ {[%clk 0:00:05.3]} 48. Kf2 {[%clk 0:00:39.2]}
48... Nf4 {[%clk 0:00:04.1]} 49. Qe8+ {[%clk 0:00:38.1]} 49... Kh7 {[%clk
0:00:04.4]} 50. Qxf7+ {[%clk 0:00:40]} 1-0